Workbook

Sheet ポジションサイズの計算
B1: ユーロ円 日足 200６年３月２９日～2011年9月２２日 | Q1: RS | R1: レジサポ
B2: エントリー：仕掛け１＆２ パターン 決済：ダイバージェンス レジサポ FIB | Q2: DJ | R2: ダイバージェンス
B4: エントリー前 | H4: 決済後 | K4: 損益pips | N4: 損切り幅の計算
B5: A | C5: B | E5: C | F5: D | G5: E | H5: F | I5: G | J5: J | K5: K | L5: L | M5: M | N5: 1 | O5: 2 | P5: 3 | R5: エントリー | T5: 決済
A6: No | B6: 資金 | C6: ロスカット | D6: 損切金額 | E6: 損切り幅 | F6: レート | G6: ﾎﾟｼﾞｼｮﾝｻｲｽﾞ | H6: 獲得pips | I6: 万通貨 | J6: 損益 | K6: エントリー | L6: 決済 | M6: 損益 | N6: STOP | O6: エントリー | P6: 損切り幅 | Q6: 売買 | R6: 日付 | S6: 仕掛け | T6: 日付 | U6: 根拠
A8: 1 | B8: 1000000 | C8: 0.03 | D8: =SUM(B8*C8) -> 30000 | E8: 191.9 | F8: 100 | G8: =SUM(B8*C8/E8/F8) -> 1.563314226 | H8: 358.6 | I8: 1.5 | J8: =SUM(H8*I8)*100 -> 53790 | K8: 141.725 | L8: 145.311 | M8: =SUM(L8-K8)*100 -> 358.6 | N8: 139.806 | O8: 141.725 | P8: =SUM(O8-N8)*100 -> 191.9 | Q8: 買 | R8: 2006.3.29 | S8: EB | T8: 2006.4.20 | U8: DJ
A9: 2 | B9: =SUM(B8+J8) -> 1053790 | C9: 0.03 | D9: =SUM(B9*C9) -> 31613.7 | E9: 182.8 | F9: 100 | G9: =SUM(B9*C9/E9/F9) -> 1.729414661 | H9: 226.1 | I9: 1.7 | J9: =SUM(H9*I9)*100 -> 38437 | K9: 142.935 | L9: 140.674 | M9: =SUM(K9-L9)*100 -> 226.1 | N9: 144.763 | O9: 142.935 | P9: =SUM(N9-O9)*100 -> 182.8 | Q9: 売 | R9: 2006.5.5 | S9: EB | T9: 2006.6.17 | U9: RS
A10: 3 | B10: 1092227 | C10: 0.03 | D10: 32766.81 | E10: 43.4 | F10: 100 | G10: 7.549956221 | H10: 777.7 | I10: 7.5 | J10: =SUM(H10*I10)*100 -> 583275 | K10: 142.844 | L10: 150.621 | M10: =SUM(L10-K10)*100 -> 777.7 | N10: 142.41 | O10: 142.844 | P10: =SUM(O10-N10)*100 -> 43.4 | Q10: 買 | R10: 2006.5.21 | S10: PB | T10: 2006.8.31 | U10: RS、十字
A11: 4 | B11: 1675502 | C11: 0.03 | D11: 50265.06 | E11: 56 | F11: 100 | G11: 8.975903571 | H11: 550.4 | I11: 8.9 | J11: 489856 | K11: 151.737 | L11: 157.241 | M11: 550.4 | N11: 151.681 | O11: 151.737 | P11: =SUM(O11-N11)*10000 -> 560 | Q11: 買 | R11: 2006.11.26 | S11: EB | T11: 2007.1.2 | U11: FIB-0.618
A12: 5 | B12: 2165358 | C12: 0.03 | D12: 64960.74 | E12: 75.9 | F12: 100 | G12: 8.558727273 | H12: 220.2 | I12: 8.5 | J12: 187170 | K12: 156.223 | L12: 158.425 | M12: 220.2 | N12: 155.464 | O12: 156.223 | P12: =SUM(O12-N12)*100 -> 75.9 | Q12: 買 | R12: 2007.1.18 | S12: PB | T12: 2007.1.24 | U12: DJ
A13: 6 | B13: 2352528 | C13: 0.03 | D13: 70575.84 | E13: 88.5 | F13: 100 | G13: 7.974671186 | H13: 771.9 | I13: 7.9 | J13: 609801 | K13: 158.567 | L13: 150.848 | M13: =SUM(K13-L13)*100 -> 771.9 | N13: 159.452 | O13: 158.567 | P13: =SUM(N13-O13)*100 -> 88.5 | Q13: 売 | R13: 2007.2.27. | S13: EB | T13: 2007.3.5 | U13: RS
A14: 7 | B14: 2962329 | C14: 0.03 | D14: 88869.87 | E14: 74.9 | F14: 100 | G14: 11.86513618 | H14: 535.1 | I14: 11.8 | J14: 631418 | K14: 157.658 | L14: 163.009 | M14: =SUM(L14-K14)*100 -> 535.1 | N14: 156.909 | O14: 157.658 | P14: =SUM(O14-N14)*10000 -> 7490 | Q14: 買 | R14: 2007.4.3 | S14: PB | T14: 2007.4.29 | U14: DJ
A15: 8 | B15: 3593747 | C15: 0.03 | D15: 107812.41 | E15: 67.8 | F15: 100 | G15: =SUM(B15*C15/E15/F15) -> 15.9015354 | H15: 620.7 | I15: 15.9 | J15: 986913 | K15: 167.647 | L15: 161.44 | M15: =SUM(K15-L15)*100 -> 620.7 | N15: 168.325 | O15: 167.647 | P15: =SUM(N15-O15)*100 -> 67.8 | Q15: 売 | R15: 2007.7.23 | S15: PB、DJ | T15: 2007.7.27 | U15: RSFIB100
A16: 9 | B16: 4580660 | C16: 0.03 | D16: 137419.8 | E16: 153.4 | F16: 100 | G16: =SUM(B16*C16/E16/F16) -> 8.958265971 | H16: 970.3 | I16: 8.9 | J16: 863567 | K16: 160.548 | L16: 150.845 | M16: =SUM(K16-L16)*100 -> 970.3 | N16: 162.082 | O16: 160.548 | P16: =SUM(N16-O16)*100 -> 153.4 | Q16: 売 | R16: 2007.8.13 | S16: EB | T16: 2007.8/16 | U16: RS
A17: 10 | B17: 5444227 | C17: 0.03 | D17: 163326.81 | E17: 210.5 | F17: 100 | G17: 7.758993349 | H17: 781.2 | I17: 7.7 | J17: 601524 | K17: 157.373 | L17: 165.185 | M17: =SUM(L17-K17)*100 -> 781.2 | N17: 155.268 | O17: 157.373 | P17: =SUM(O17-N17)*100 -> 210.5 | Q17: 買 | R17: 2007.9.11 | S17: EB | T17: 2007.10.3 | U17: RSFIB100
A18: 11 | B18: 6045751 | C18: 0.03 | D18: 181372.53 | E18: 195.4 | F18: 100 | G18: 9.282115148 | H18: 277.1 | I18: 9.2 | J18: 254932 | K18: 162.345 | L18: 159.574 | M18: =SUM(K18-L18)*100 -> 277.1 | N18: 164.299 | O18: 162.345 | P18: =SUM(N18-O18)*100 -> 195.4 | Q18: 売 | R18: 2007.11.15 | S18: PB | T18: 2007.11.23 | U18: RS
A19: 12 | B19: 6300683 | C19: 0.03 | D19: 189020.49 | E19: 241.5 | F19: 100 | G19: 7.826935404 | H19: 144.7 | I19: 7.8 | J19: 112866 | K19: 161.741 | L19: 163.188 | M19: =SUM(L19-K19)*100 -> 144.7 | N19: 159.326 | O19: 161.741 | P19: =SUM(O19-N19)*100 -> 241.5 | Q19: 買 | R19: 2007.11.28 | S19: EB、RS | T19: 2007.11.26 | U19: FIB50RS
A20: 13 | B20: 6413549 | C20: 0.03 | D20: 192406.47 | E20: 96 | F20: 100 | G20: 20.04234062 | H20: 624.8 | I20: 20 | J20: 1249600 | K20: 162.648 | L20: 168.896 | M20: =SUM(L20-K20)*100 -> 624.8 | N20: 161.688 | O20: 162.648 | P20: =SUM(O20-N20)*100 -> 96 | Q20: 買 | R20: 2008.6.5 | S20: EB | T20: 2008.6.25 | U20: FIB161.8
A21: 14 | B21: 7663149 | C21: 0.03 | D21: 229894.47 | E21: 79 | F21: 100 | G21: 29.10056582 | H21: 257.6 | I21: 29.1 | J21: 749616 | K21: 168.7 | L21: 166.124 | M21: =SUM(K21-L21)*100 -> 257.6 | N21: 169.49 | O21: 168.7 | P21: =SUM(N21-O21)*100 -> 79 | Q21: 売 | R21: 2008.7.15 | S21: EB | T21: 2008.7.16 | U21: RS
A22: 15 | B22: 8412765 | C22: 0.03 | D22: 252382.95 | E22: 204.4 | F22: 100 | G22: =SUM(B22*C22/E22/F22) -> 12.34750245 | H22: 1653.5 | I22: 12.3 | J22: 2033805 | K22: 167.381 | L22: 150.846 | M22: =SUM(K22-L22)*100 -> 1653.5 | N22: 169.425 | O22: 167.381 | P22: =SUM(N22-O22)*100 -> 204.4 | Q22: 売 | R22: 2008.8.8 | S22: EB | T22: 2008.9.4 | U22: RS
A23: 16 | B23: 10446570 | C23: 0.03 | D23: 313397.1 | E23: 293.4 | F23: 100 | G23: =SUM(B23*C23/E23/F23) -> 10.68156442 | H23: 974.6 | I23: 10.6 | J23: 1033076 | K23: 148.446 | L23: 138.7 | M23: =SUM(K23-L23)*100 -> 974.6 | N23: 151.38 | O23: 148.446 | P23: =SUM(N23-O23)*100 -> 293.4 | Q23: 売 | R23: 2008.10.1 | S23: PB、RS | T23: 2008.10.6 | U23: FIB-0.618
A24: 17 | B24: 11479646 | C24: 0.03 | D24: 344389.38 | E24: 408.6 | F24: 100 | G24: 8.428521292 | H24: 1728.9 | I24: 8.4 | J24: 1452276 | K24: 134.615 | L24: 117.326 | M24: =SUM(K24-L24)*100 -> 1728.9 | N24: 138.701 | O24: 134.615 | P24: =SUM(N24-O24)*100 -> 408.6 | Q24: 売 | R24: 2008.10.21 | S24: PB | T24: 2008.10.24 | U24: FIB-0.618
A25: 18 | B25: 12931922 | C25: 0.03 | D25: 387957.66 | E25: 442.9 | F25: 100 | G25: 8.759486566 | H25: 840.6 | I25: 8.7 | J25: 731322 | K25: 122.57 | L25: 130.976 | M25: =SUM(L25-K25)*100 -> 840.6 | N25: 118.141 | O25: 122.57 | P25: =SUM(O25-N25)*100 -> 442.9 | Q25: 買 | R25: 2008.12.15 | S25: PB | T25: 2008.12.18 | U25: RS
A26: 19 | B26: 13663244 | C26: 0.03 | D26: 409897.32 | E26: 197.3 | F26: 100 | G26: 20.775333 | H26: 924.5 | I26: 20.7 | J26: 1913715 | K26: 125.484 | L26: 116.239 | M26: =SUM(K26-L26)*100 -> 924.5 | N26: 127.457 | O26: 125.484 | P26: =SUM(N26-O26)*100 -> 197.3 | Q26: 売 | R26: 2009.1.8 | S26: PB | T26: 2009.1.14 | U26: RS
A27: 20 | B27: 15576959 | C27: 0.03 | D27: 467308.77 | E27: 373.9 | F27: 100 | G27: 12.49822867 | H27: 187 | I27: 12.4 | J27: 231880 | K27: 118.109 | L27: 116.239 | M27: =SUM(K27-L27)*100 -> 187 | N27: 121.848 | O27: 118.109 | P27: =SUM(N27-O27)*100 -> 373.9 | Q27: 売 | R27: 2009.1.19 | S27: EB | T27: 2009.1.20 | U27: RS
A28: 21 | B28: 15808839 | C28: 0.03 | D28: =SUM(B28*C28) -> 474265.17 | E28: 218.1 | F28: 100 | G28: =SUM(B28*C28/E28/F28) -> 21.74530812 | H28: 911.2 | I28: 21.7 | J28: 1977304 | K28: 116.966 | L28: 126.078 | M28: =SUM(L28-K28)*100 -> 911.2 | N28: 114.785 | O28: 116.966 | P28: =SUM(O28-N28)*100 -> 218.1 | Q28: 買 | R28: 2009.2.13 | S28: PB | T28: 2009.2.26 | U28: RS
A29: 22 | B29: 17786143 | C29: 0.03 | D29: =SUM(B29*C29) -> 533584.29 | E29: 103.1 | F29: 100 | G29: =SUM(B29*C29/E29/F29) -> 51.75405335 | H29: 452 | I29: 51.7 | J29: 2336840 | K29: 126.471 | L29: 130.991 | M29: =SUM(L29-K29)*100 -> 452 | N29: 125.44 | O29: 126.471 | P29: =SUM(O29-N29)*100 -> 103.1 | Q29: 買 | R29: 2009.3.16 | S29: PB | T29: 2009.3.23 | U29: RS
A30: 23 | B30: 20122983 | C30: 0.03 | D30: 603689.49 | E30: 339 | F30: 100 | G30: 17.80794956 | H30: 481.4 | I30: 17.8 | J30: =SUM(H30*I30)*100 -> 856892 | K30: 130.794 | L30: 125.98 | M30: =SUM(K30-L30)*100 -> 481.4 | N30: 134.184 | O30: 130.794 | P30: =SUM(N30-O30)*100 -> 339 | Q30: 売 | R30: 2009.4.15 | S30: EB、三尊 | T30: 2009.4.20 | U30: RS | V30: DJ
A31: 24 | B31: 20979875 | C31: 0.03 | D31: 629396.25 | E31: 191.6 | F31: 100 | G31: 32.84949113 | H31: 400.3 | I31: 32.8 | J31: 1312984 | K31: 133.3 | L31: 137.303 | M31: =SUM(L31-K31)*100 -> 400.3 | N31: 131.384 | O31: 133.3 | P31: =SUM(O31-N31)*100 -> 191.6 | Q31: 買 | R31: 2009.5.28 | S31: PB | T31: 2009.6.3 | U31: FIB-0.618 | V31: RS
A32: 25 | B32: 22292859 | C32: 0.03 | D32: 668785.77 | E32: 278 | F32: 100 | G32: 24.05704209 | H32: 572.3 | I32: 24 | J32: 1373520 | K32: 133.678 | L32: 127.955 | M32: =SUM(K32-L32)*100 -> 572.3 | N32: 136.458 | O32: 133.678 | P32: =SUM(N32-O32)*100 -> 278 | Q32: 売 | R32: 2009.7.3 | S32: EB | T32: 2009.7.8 | U32: FIB161.8
A33: 26 | B33: 23666379 | C33: 0.03 | D33: 709991.37 | E33: 165.2 | F33: 100 | G33: 42.97768584 | H33: 340.1 | I33: 42.9 | J33: 1459029 | K33: 134.85 | L33: 138.251 | M33: =SUM(L33-K33)*100 -> 340.1 | N33: 133.198 | O33: 134.85 | P33: =SUM(O33-N33)*100 -> 165.2 | Q33: 買 | R33: 2009.7.31 | S33: EB | T33: 2009.8.7 | U33: RS,WT
A34: 27 | B34: 25125408 | C34: 0.03 | D34: 753762.24 | E34: 127.7 | F34: 100 | G34: 59.02601723 | H34: 371.9 | I34: 59 | J34: 2194210 | K34: 134.75 | L34: 131.031 | M34: =SUM(K34-L34)*100 -> 371.9 | N34: 136.027 | O34: 134.75 | P34: =SUM(N34-O34)*100 -> 127.7 | Q34: 売 | R34: 2009.8.25 | S34: EB | T34: 2009.9.2 | U34: RS
A35: 28 | B35: 27319618 | C35: 0.03 | D35: 819588.54 | E35: 91.3 | F35: 100 | G35: =SUM(B35*C35/E35/F35) -> 89.76873384 | H35: 322.6 | I35: 89.7 | J35: 2893722 | K35: 134.254 | L35: 131.028 | M35: =SUM(K35-L35)*100 -> 322.6 | N35: 135.167 | O35: 134.254 | P35: =SUM(N35-O35)*100 -> 91.3 | Q35: 売 | R35: 2009.9.24 | S35: PB,RS | T35: 2009.9.27 | U35: RS
A36: 29 | B36: 30213340 | C36: 0.03 | D36: 906400.2 | E36: 151.9 | F36: 100 | G36: =SUM(B36*C36/E36/F36) -> 59.67084924 | H36: 448.9 | I36: 59.6 | J36: 2675444 | K36: 133.731 | L36: 138.22 | M36: =SUM(L36-K36)*100 -> 448.9 | N36: 132.212 | O36: 133.731 | P36: =SUM(O36-N36)*100 -> 151.9 | Q36: 買 | R36: 2009.10.15 | S36: PB | T36: 2009.10.23 | U36: RS,TT
A37: 30 | B37: 32888784 | C37: 0.03 | D37: 986663.52 | E37: 110.4 | F37: 100 | G37: 89.37169565 | H37: 614.7 | I37: 89.3 | J37: 5489271 | K37: 133.11 | L37: 126.963 | M37: =SUM(K37-L37)*100 -> 614.7 | N37: 134.214 | O37: 133.11 | P37: =SUM(N37-O37)*100 -> 110.4 | Q37: 売 | R37: 2009.11.17 | S37: EB | T37: 2009.11.26 | U37: RS
A38: 31 | B38: 38378055 | C38: 0.03 | D38: 1151341.65 | E38: 145 | F38: 100 | G38: 79.40287241 | H38: 107 | I38: 79.4 | J38: 849580 | K38: 130.002 | L38: 128.932 | M38: =SUM(K38-L38)*100 -> 107 | N38: 131.452 | O38: 130.002 | P38: =SUM(N38-O38)*100 -> 145 | Q38: 売 | R38: 2009.12.14 | S38: PB | T38: 2009.12.17 | U38: RS
A39: 32 | B39: 39227635 | C39: 0.03 | D39: 1176829.05 | E39: 107.1 | F39: 100 | G39: 109.8813305 | H39: 794.1 | I39: 109.8 | J39: 8719218 | K39: 129.553 | L39: 121.612 | M39: =SUM(K39-L39)*100 -> 794.1 | N39: 130.624 | O39: 129.553 | P39: =SUM(N39-O39)*100 -> 107.1 | Q39: 売 | R39: 2010.1.20 | S39: EB、RS | T39: 2010.2.4 | U39: FIB-0.618
A40: 33 | B40: 47946853 | C40: 0.03 | D40: 1438405.59 | E40: 88.8 | F40: 100 | G40: 161.9826115 | H40: 286.2 | I40: 161.9 | J40: 4633578 | K40: 124.828 | L40: 127.69 | M40: =SUM(L40-K40)*100 -> 286.2 | N40: 123.94 | O40: 124.828 | P40: =SUM(O40-N40)*100 -> 88.8 | Q40: 買 | R40: 2010.3.30 | S40: EB | T40: 2010.4.2 | U40: FIB161.8
A41: 34 | B41: 52580431 | C41: 0.03 | D41: 1577412.93 | E41: 141.5 | F41: 100 | G41: 111.4779456 | H41: 1367.9 | I41: 111.4 | J41: 15238406 | K41: 124.343 | L41: 110.664 | M41: =SUM(K41-L41)*100 -> 1367.9 | N41: 125.758 | O41: 124.343 | P41: =SUM(N41-O41)*100 -> 141.5 | Q41: 売 | R41: 2010.5.3 | S41: PB | T41: 2010.5.6 | U41: FIB-0.618
A42: 35 | B42: 67818837 | C42: 0.03 | D42: 2034565.11 | E42: 158.7 | F42: 100 | G42: =SUM(B42*C42/E42/F42) -> 128.2019603 | H42: 248.3 | I42: 128.2 | J42: 3183206 | K42: 110.793 | L42: 113.276 | M42: =SUM(L42-K42)*100 -> 248.3 | N42: 109.206 | O42: 110.793 | P42: =SUM(O42-N42)*100 -> 158.7 | Q42: 買 | R42: 2010.7.8 | S42: PB | T42: 2010.7.14 | U42: RS
A43: 36 | B43: 71002043 | C43: 0.03 | D43: 2130061.29 | E43: 146.6 | F43: 100 | G43: =SUM(B43*C43/E43/F43) -> 145.2974959 | H43: 610.6 | I43: 145.2 | J43: 8865912 | K43: 112.177 | L43: 106.071 | M43: =SUM(K43-L43)*100 -> 610.6 | N43: 113.643 | O43: 112.177 | P43: =SUM(N43-O43)*100 -> 146.6 | Q43: 売 | R43: 2010.8.11 | S43: EB | T43: 2010.8.24 | U43: FIB-0.618
A44: 37 | B44: 79867955 | C44: 0.03 | D44: 2396038.65 | E44: 146.4 | F44: 100 | G44: 163.6638422 | H44: 648.8 | I44: 163.6 | J44: =SUM(H44*I44)*100 -> 10614368 | K44: 108.218 | L44: 114.706 | M44: =SUM(L44-K44)*100 -> 648.8 | N44: 106.754 | O44: 108.218 | P44: =SUM(O44-N44)*100 -> 146.4 | Q44: 買 | R44: 2010.9.15 | S44: PB | T44: 2010.10.1 | U44: FIB100
A45: 38 | B45: 90482323 | C45: 0.03 | D45: 2714469.69 | E45: 109.3 | F45: 100 | G45: 248.3503833 | H45: 161.3 | I45: 248.3 | J45: 4005079 | K45: 113.501 | L45: 111.888 | M45: =SUM(K45-L45)*100 -> 161.3 | N45: 114.594 | O45: 113.501 | P45: =SUM(N45-O45)*100 -> 109.3 | Q45: 売 | R45: 2010.10.17 | S45: EB | T45: 2010.10.19 | U45: FIB38.2
A46: 39 | B46: 94487402 | C46: 0.03 | D46: 2834622.06 | E46: 121.3 | F46: 100 | G46: 233.6868969 | H46: 551.8 | I46: 233.6 | J46: =SUM(H46*I46)*100 -> 12890048 | K46: 119.46 | L46: 113.942 | M46: =SUM(K46-L46)*100 -> 551.8 | N46: 120.673 | O46: 119.46 | P46: =SUM(N46-O46)*100 -> 121.3 | Q46: 売 | R46: 2011.5.4 | S46: PB | T46: 2011.5.14 | U46: RS
A47: 40 | B47: 107377450 | C47: 0.03 | D47: 3221323.5 | E47: 114.5 | F47: 100 | G47: 281.3382969 | H47: 743.9 | I47: 281.3 | J47: 20925907 | K47: 109.653 | L47: 102.214 | M47: =SUM(K47-L47)*100 -> 743.9 | N47: 110.798 | O47: 109.653 | P47: =SUM(N47-O47)*100 -> 114.5 | Q47: 売 | R47: 2011.9.2 | S47: PB | T47: 2011.9.22 | U47: FIB-0.618
J48: =SUM(J8:J47) -> 127303357

Sheet 気づき
A3: 2013年は、エントリー回数が７回と少なかった。
A5: レンジが多かったのか、MAの１０と２０の絡まりが綺麗ではなかった。

Sheet 画像
